Workbook

Sheet Data
C4: Employee Name | D4: John Jones
C6: Current Age | D6: 24
C8: Retirement Age | D8: 65
C10: Current Salary | D10: 20000
C12: Salary Growth Rate | D12: 0.03
C14: Contribution Rate | D14: 0.08
C16: Company Match | D16: 0.5
C18: Investment Return | D18: 0.1
C21: Ending Balance | D21: =Balances!$G$44 -> 1671012.109

Sheet Balances
C1: Beginning | D1: Employee | E1: Company | F1: Investment | G1: Ending
A2: Age | B2: Salary | C2: Balance | D2: Contributions | E2: Match | F2: Earnings | G2: Balance
A3: =Data!D6 -> 24 | B3: =Data!D10 -> 20000 | C3: 0 | D3: =B3*Data!$D$14 -> 1600 | E3: =MIN(Data!$D$14,0.06)*B3*Data!$D$16 -> 600 | F3: =(C3+D3/2)*Data!$D$18 -> 80 | G3: =SUM(C3:F3) -> 2280
A4: =A3+1 -> 25 | B4: =B3*(1+Data!$D$12) -> 20600 | C4: =G3 -> 2280 | D4: =B4*Data!$D$14 -> 1648 | E4: =MIN(Data!$D$14,0.06)*B4*Data!$D$16 -> 618 | F4: =(C4+D4/2)*Data!$D$18 -> 310.4 | G4: =SUM(C4:F4) -> 4856.4
A5: =A4+1 -> 26 | B5: =B4*(1+Data!$D$12) -> 21218 | C5: =G4 -> 4856.4 | D5: =B5*Data!$D$14 -> 1697.44 | E5: =MIN(Data!$D$14,0.06)*B5*Data!$D$16 -> 636.54 | F5: =(C5+D5/2)*Data!$D$18 -> 570.512 | G5: =SUM(C5:F5) -> 7760.892
A6: 27 | B6: =B5*(1+Data!$D$12) -> 21854.54 | C6: 7760.892 | D6: =B6*Data!$D$14 -> 1748.3632 | E6: =MIN(Data!$D$14,0.06)*B6*Data!$D$16 -> 655.6362 | F6: =(C6+D6/2)*Data!$D$18 -> 863.50736 | G6: 11028.39876
A7: 28 | B7: =B6*(1+Data!$D$12) -> 22510.1762 | C7: 11028.39876 | D7: =B7*Data!$D$14 -> 1800.814096 | E7: =MIN(Data!$D$14,0.06)*B7*Data!$D$16 -> 675.305286 | F7: =(C7+D7/2)*Data!$D$18 -> 1192.880581 | G7: 14697.39872
A8: 29 | B8: =B7*(1+Data!$D$12) -> 23185.48149 | C8: 14697.39872 | D8: =B8*Data!$D$14 -> 1854.838519 | E8: =MIN(Data!$D$14,0.06)*B8*Data!$D$16 -> 695.5644446 | F8: =(C8+D8/2)*Data!$D$18 -> 1562.481798 | G8: 18810.28348
A9: 30 | B9: =B8*(1+Data!$D$12) -> 23881.04593 | C9: 18810.28348 | D9: =B9*Data!$D$14 -> 1910.483674 | E9: =MIN(Data!$D$14,0.06)*B9*Data!$D$16 -> 716.4313779 | F9: =(C9+D9/2)*Data!$D$18 -> 1976.552532 | G9: 23413.75107
A10: 31 | B10: =B9*(1+Data!$D$12) -> 24597.47731 | C10: 23413.75107 | D10: =B10*Data!$D$14 -> 1967.798185 | E10: =MIN(Data!$D$14,0.06)*B10*Data!$D$16 -> 737.9243193 | F10: =(C10+D10/2)*Data!$D$18 -> 2439.765016 | G10: 28559.23859
A11: 32 | B11: =B10*(1+Data!$D$12) -> 25335.40163 | C11: 28559.23859 | D11: =B11*Data!$D$14 -> 2026.83213 | E11: =MIN(Data!$D$14,0.06)*B11*Data!$D$16 -> 760.0620488 | F11: =(C11+D11/2)*Data!$D$18 -> 2957.265465 | G11: 34303.39823
A12: 33 | B12: =B11*(1+Data!$D$12) -> 26095.46368 | C12: 34303.39823 | D12: =B12*Data!$D$14 -> 2087.637094 | E12: =MIN(Data!$D$14,0.06)*B12*Data!$D$16 -> 782.8639103 | F12: =(C12+D12/2)*Data!$D$18 -> 3534.721678 | G12: 40708.62092
A13: 34 | B13: =B12*(1+Data!$D$12) -> 26878.32759 | C13: 40708.62092 | D13: =B13*Data!$D$14 -> 2150.266207 | E13: =MIN(Data!$D$14,0.06)*B13*Data!$D$16 -> 806.3498276 | F13: =(C13+D13/2)*Data!$D$18 -> 4178.375402 | G13: 47843.61235
A14: 35 | B14: =B13*(1+Data!$D$12) -> 27684.67741 | C14: 47843.61235 | D14: =B14*Data!$D$14 -> 2214.774193 | E14: =MIN(Data!$D$14,0.06)*B14*Data!$D$16 -> 830.5403224 | F14: =(C14+D14/2)*Data!$D$18 -> 4895.099945 | G14: 55784.02681
A15: 36 | B15: =B14*(1+Data!$D$12) -> 28515.21774 | C15: 55784.02681 | D15: =B15*Data!$D$14 -> 2281.217419 | E15: =MIN(Data!$D$14,0.06)*B15*Data!$D$16 -> 855.4565321 | F15: =(C15+D15/2)*Data!$D$18 -> 5692.463552 | G15: 64613.16432
A16: 37 | B16: =B15*(1+Data!$D$12) -> 29370.67427 | C16: 64613.16432 | D16: =B16*Data!$D$14 -> 2349.653942 | E16: =MIN(Data!$D$14,0.06)*B16*Data!$D$16 -> 881.1202281 | F16: =(C16+D16/2)*Data!$D$18 -> 6578.799129 | G16: 74422.73761
A17: 38 | B17: =B16*(1+Data!$D$12) -> 30251.7945 | C17: 74422.73761 | D17: =B17*Data!$D$14 -> 2420.14356 | E17: =MIN(Data!$D$14,0.06)*B17*Data!$D$16 -> 907.5538349 | F17: =(C17+D17/2)*Data!$D$18 -> 7563.280939 | G17: 85313.71595
A18: 39 | B18: =B17*(1+Data!$D$12) -> 31159.34833 | C18: 85313.71595 | D18: =B18*Data!$D$14 -> 2492.747867 | E18: =MIN(Data!$D$14,0.06)*B18*Data!$D$16 -> 934.78045 | F18: =(C18+D18/2)*Data!$D$18 -> 8656.008988 | G18: 97397.25325
A19: 40 | B19: =B18*(1+Data!$D$12) -> 32094.12878 | C19: 97397.25325 | D19: =B19*Data!$D$14 -> 2567.530303 | E19: =MIN(Data!$D$14,0.06)*B19*Data!$D$16 -> 962.8238635 | F19: =(C19+D19/2)*Data!$D$18 -> 9868.10184 | G19: 110795.7093
A20: 41 | B20: =B19*(1+Data!$D$12) -> 33056.95265 | C20: 110795.7093 | D20: =B20*Data!$D$14 -> 2644.556212 | E20: =MIN(Data!$D$14,0.06)*B20*Data!$D$16 -> 991.7085794 | F20: =(C20+D20/2)*Data!$D$18 -> 11211.79874 | G20: 125643.7728
A21: 42 | B21: =B20*(1+Data!$D$12) -> 34048.66122 | C21: 125643.7728 | D21: =B21*Data!$D$14 -> 2723.892898 | E21: =MIN(Data!$D$14,0.06)*B21*Data!$D$16 -> 1021.459837 | F21: =(C21+D21/2)*Data!$D$18 -> 12700.57192 | G21: 142089.6974
A22: 43 | B22: =B21*(1+Data!$D$12) -> 35070.12106 | C22: 142089.6974 | D22: =B22*Data!$D$14 -> 2805.609685 | E22: =MIN(Data!$D$14,0.06)*B22*Data!$D$16 -> 1052.103632 | F22: =(C22+D22/2)*Data!$D$18 -> 14349.25023 | G22: 160296.661
A23: 44 | B23: =B22*(1+Data!$D$12) -> 36122.22469 | C23: 160296.661 | D23: =B23*Data!$D$14 -> 2889.777975 | E23: =MIN(Data!$D$14,0.06)*B23*Data!$D$16 -> 1083.666741 | F23: =(C23+D23/2)*Data!$D$18 -> 16174.155 | G23: 180444.2607
A24: 45 | B24: =B23*(1+Data!$D$12) -> 37205.89143 | C24: 180444.2607 | D24: =B24*Data!$D$14 -> 2976.471315 | E24: =MIN(Data!$D$14,0.06)*B24*Data!$D$16 -> 1116.176743 | F24: =(C24+D24/2)*Data!$D$18 -> 18193.24964 | G24: 202730.1584
A25: 46 | B25: =B24*(1+Data!$D$12) -> 38322.06818 | C25: 202730.1584 | D25: =B25*Data!$D$14 -> 3065.765454 | E25: =MIN(Data!$D$14,0.06)*B25*Data!$D$16 -> 1149.662045 | F25: =(C25+D25/2)*Data!$D$18 -> 20426.30411 | G25: 227371.89
A26: 47 | B26: =B25*(1+Data!$D$12) -> 39471.73022 | C26: 227371.89 | D26: =B26*Data!$D$14 -> 3157.738418 | E26: =MIN(Data!$D$14,0.06)*B26*Data!$D$16 -> 1184.151907 | F26: =(C26+D26/2)*Data!$D$18 -> 22895.07592 | G26: 254608.8563
A27: 48 | B27: =B26*(1+Data!$D$12) -> 40655.88213 | C27: 254608.8563 | D27: =B27*Data!$D$14 -> 3252.47057 | E27: =MIN(Data!$D$14,0.06)*B27*Data!$D$16 -> 1219.676464 | F27: =(C27+D27/2)*Data!$D$18 -> 25623.50915 | G27: 284704.5124
A28: 49 | B28: =B27*(1+Data!$D$12) -> 41875.55859 | C28: 284704.5124 | D28: =B28*Data!$D$14 -> 3350.044687 | E28: =MIN(Data!$D$14,0.06)*B28*Data!$D$16 -> 1256.266758 | F28: =(C28+D28/2)*Data!$D$18 -> 28637.95348 | G28: 317948.7774
A29: 50 | B29: =B28*(1+Data!$D$12) -> 43131.82535 | C29: 317948.7774 | D29: =B29*Data!$D$14 -> 3450.546028 | E29: =MIN(Data!$D$14,0.06)*B29*Data!$D$16 -> 1293.954761 | F29: =(C29+D29/2)*Data!$D$18 -> 31967.40504 | G29: 354660.6832
A30: 51 | B30: =B29*(1+Data!$D$12) -> 44425.78011 | C30: 354660.6832 | D30: =B30*Data!$D$14 -> 3554.062409 | E30: =MIN(Data!$D$14,0.06)*B30*Data!$D$16 -> 1332.773403 | F30: =(C30+D30/2)*Data!$D$18 -> 35643.77144 | G30: 395191.2905
A31: 52 | B31: =B30*(1+Data!$D$12) -> 45758.55351 | C31: 395191.2905 | D31: =B31*Data!$D$14 -> 3660.684281 | E31: =MIN(Data!$D$14,0.06)*B31*Data!$D$16 -> 1372.756605 | F31: =(C31+D31/2)*Data!$D$18 -> 39702.16326 | G31: 439926.8946
A32: 53 | B32: =B31*(1+Data!$D$12) -> 47131.31012 | C32: 439926.8946 | D32: =B32*Data!$D$14 -> 3770.50481 | E32: =MIN(Data!$D$14,0.06)*B32*Data!$D$16 -> 1413.939304 | F32: =(C32+D32/2)*Data!$D$18 -> 44181.2147 | G32: 489292.5534
A33: 54 | B33: =B32*(1+Data!$D$12) -> 48545.24942 | C33: 489292.5534 | D33: =B33*Data!$D$14 -> 3883.619954 | E33: =MIN(Data!$D$14,0.06)*B33*Data!$D$16 -> 1456.357483 | F33: =(C33+D33/2)*Data!$D$18 -> 49123.43634 | G33: 543755.9672
A34: 55 | B34: =B33*(1+Data!$D$12) -> 50001.60691 | C34: 543755.9672 | D34: =B34*Data!$D$14 -> 4000.128553 | E34: =MIN(Data!$D$14,0.06)*B34*Data!$D$16 -> 1500.048207 | F34: =(C34+D34/2)*Data!$D$18 -> 54575.60315 | G34: 603831.7471
A35: 56 | B35: =B34*(1+Data!$D$12) -> 51501.65511 | C35: 603831.7471 | D35: =B35*Data!$D$14 -> 4120.132409 | E35: =MIN(Data!$D$14,0.06)*B35*Data!$D$16 -> 1545.049653 | F35: =(C35+D35/2)*Data!$D$18 -> 60589.18133 | G35: 670086.1105
A36: 57 | B36: =B35*(1+Data!$D$12) -> 53046.70477 | C36: 670086.1105 | D36: =B36*Data!$D$14 -> 4243.736381 | E36: =MIN(Data!$D$14,0.06)*B36*Data!$D$16 -> 1591.401143 | F36: =(C36+D36/2)*Data!$D$18 -> 67220.79787 | G36: 743142.0459
A37: 58 | B37: =B36*(1+Data!$D$12) -> 54638.10591 | C37: 743142.0459 | D37: =B37*Data!$D$14 -> 4371.048473 | E37: =MIN(Data!$D$14,0.06)*B37*Data!$D$16 -> 1639.143177 | F37: =(C37+D37/2)*Data!$D$18 -> 74532.75701 | G37: 823684.9945
A38: 59 | B38: =B37*(1+Data!$D$12) -> 56277.24909 | C38: 823684.9945 | D38: =B38*Data!$D$14 -> 4502.179927 | E38: =MIN(Data!$D$14,0.06)*B38*Data!$D$16 -> 1688.317473 | F38: =(C38+D38/2)*Data!$D$18 -> 82593.60845 | G38: 912469.1004
A39: 60 | B39: =B38*(1+Data!$D$12) -> 57965.56656 | C39: 912469.1004 | D39: =B39*Data!$D$14 -> 4637.245325 | E39: =MIN(Data!$D$14,0.06)*B39*Data!$D$16 -> 1738.966997 | F39: =(C39+D39/2)*Data!$D$18 -> 91478.7723 | G39: 1010324.085
A40: 61 | B40: =B39*(1+Data!$D$12) -> 59704.53356 | C40: 1010324.085 | D40: =B40*Data!$D$14 -> 4776.362685 | E40: =MIN(Data!$D$14,0.06)*B40*Data!$D$16 -> 1791.136007 | F40: =(C40+D40/2)*Data!$D$18 -> 101271.2266 | G40: 1118162.81
A41: 62 | B41: =B40*(1+Data!$D$12) -> 61495.66956 | C41: 1118162.81 | D41: =B41*Data!$D$14 -> 4919.653565 | E41: =MIN(Data!$D$14,0.06)*B41*Data!$D$16 -> 1844.870087 | F41: =(C41+D41/2)*Data!$D$18 -> 112062.2637 | G41: 1236989.598
A42: 63 | B42: =B41*(1+Data!$D$12) -> 63340.53965 | C42: 1236989.598 | D42: =B42*Data!$D$14 -> 5067.243172 | E42: =MIN(Data!$D$14,0.06)*B42*Data!$D$16 -> 1900.21619 | F42: =(C42+D42/2)*Data!$D$18 -> 123952.3219 | G42: 1367909.379
A43: 64 | B43: =B42*(1+Data!$D$12) -> 65240.75584 | C43: 1367909.379 | D43: =B43*Data!$D$14 -> 5219.260467 | E43: =MIN(Data!$D$14,0.06)*B43*Data!$D$16 -> 1957.222675 | F43: =(C43+D43/2)*Data!$D$18 -> 137051.9009 | G43: 1512137.763
A44: 65 | B44: =B43*(1+Data!$D$12) -> 67197.97852 | C44: 1512137.763 | D44: =B44*Data!$D$14 -> 5375.838281 | E44: =MIN(Data!$D$14,0.06)*B44*Data!$D$16 -> 2015.939355 | F44: =(C44+D44/2)*Data!$D$18 -> 151482.5682 | G44: 1671012.109
